fUSD/lending_fUSD_20251031
["ID","MTS","AMOUNT","RATE_DAILY","PERIOD"]
[392781301,1761947922218,-500.0,0.00031506,120]
[392781302,1761947922260,-232.02327714,0.00031506,120]
[392781303,1761947922301,-500.0,0.00031506,120]
[392781304,1761947922341,-436.11216819,0.00031506,120]
[392781305,1761947922382,-500.0,0.00031506,120]
[392781306,1761947922424,-446.61262301,0.00031506,120]
[392781307,1761947922466,-500.0,0.00031506,120]
[392781308,1761947922507,-1299.42,0.00031506,120]
[392781309,1761947922548,-500.0,0.00031506,120]
[392781310,1761947922590,-500.0,0.00031506,120]
[392781311,1761947922633,-518.85086047,0.00031506,120]
[392781312,1761947922674,-500.0,0.00031506,120]
[392781313,1761947922714,-623.88139451,0.00031506,120]
[392781314,1761947922755,-500.0,0.00031506,120]
[392781315,1761947922795,-500.0,0.00031506,120]
[392781316,1761947922836,-500.0,0.00031506,120]
[392781317,1761947922877,-500.0,0.00031506,120]
[392781318,1761947922918,-500.0,0.00031506,120]
[392781319,1761947922959,-500.0,0.00031506,120]
[392781320,1761947923001,-1045.36,0.00031506,120]
[392781321,1761947923041,-500.0,0.00031506,120]
[392781322,1761947923083,-500.0,0.00031506,120]
[392781323,1761947923124,-500.0,0.00031506,120]
[392781324,1761947923167,-500.0,0.00031506,120]
[392781325,1761947923208,-500.0,0.00031506,120]
[392781326,1761947923250,-500.0,0.00031506,120]
[392781327,1761947923292,-500.0,0.00031506,120]
[392781328,1761947923337,-1440.07,0.00031506,120]
[392781329,1761947923379,-500.0,0.00031506,120]
[392781330,1761947923420,-527.79401577,0.00031506,120]
[392781331,1761947923461,-510.39654698,0.00031506,120]
[392781332,1761947923505,-500.0,0.00031506,120]
[392781333,1761947923548,-500.0,0.00031506,120]
[392781334,1761947923590,-478.11673741,0.00031506,120]
[392781335,1761947923631,-690.21,0.00031506,120]
[392781336,1761947923674,-500.0,0.00031506,120]
[392781337,1761947923717,-500.0,0.00031506,120]
[392781338,1761947923759,-500.0,0.00031506,120]
[392781339,1761947923796,-512.61120631,0.00031506,120]
[392781340,1761947923835,-500.0,0.00031506,120]
[392781341,1761947923872,-516.18542342,0.00031506,120]
[392781342,1761947923912,-500.0,0.00031506,120]
[392781343,1761947923949,-500.0,0.00031506,120]
[392781344,1761947923989,-500.0,0.00031506,120]
[392781345,1761947924029,-1505.81,0.00031506,120]
[392781346,1761947924068,-500.0,0.00031506,120]
[392781347,1761947924110,-500.0,0.00031506,120]
[392781348,1761947924150,-1037.19,0.00031506,120]
[392781349,1761947924190,-500.0,0.00031506,120]
[392781350,1761947924230,-510.55896089,0.00031506,120]
[392781351,1761947924270,-534.46,0.00031506,120]
[392781352,1761947924311,-500.0,0.00031506,120]
[392781353,1761947924352,-528.65798629,0.00031506,120]
[392781354,1761947924392,-500.0,0.00031506,120]
[392781355,1761947924430,-500.0,0.00031506,120]
[392781356,1761947924469,-604.63,0.00031506,120]
[392781357,1761947924509,-1179.92,0.00031506,120]
[392781358,1761947924548,-500.0,0.00031506,120]
[392781359,1761947924588,-247.59051396,0.00031506,120]
[392781360,1761947924629,-764.02,0.00031506,120]
[392781361,1761947924671,-500.0,0.00031506,120]
[392781362,1761947924871,-511.23673478,0.00031506,120]
[392781363,1761947924928,-500.0,0.00031506,120]
[392781364,1761947924968,-716.55,0.00031506,120]
[392781365,1761947925007,-500.0,0.00031506,120]
[392781366,1761947925044,-500.0,0.00031506,120]
[392781367,1761947925088,-500.0,0.00031506,120]
[392781368,1761947925129,-500.0,0.00031506,120]
[392781369,1761947925166,-609.39,0.00031506,120]
[392781370,1761947925203,-500.0,0.00031506,120]
[392781371,1761947925241,-500.0,0.00031506,120]
[392781372,1761947925282,-240.16048175,0.00031506,120]
[392781373,1761947925321,-500.0,0.00031506,120]
[392781374,1761947925362,-500.0,0.00031506,120]
[392781375,1761947925402,-500.0,0.00031506,120]
[392781376,1761947925441,-500.0,0.00031506,120]
[392781377,1761947925480,-500.0,0.00031506,120]
[392781378,1761947925519,-500.0,0.00031506,120]
[392781379,1761947925557,-500.0,0.00031506,120]
[392781380,1761947925595,-543.49755619,0.00031506,120]
[392781381,1761947925631,-500.0,0.00031506,120]
[392781382,1761947925668,-500.0,0.00031506,120]
[392781383,1761947925706,-587.41,0.00031506,120]
[392781384,1761947925743,-507.27679375,0.00031506,120]
[392781385,1761947925779,-500.0,0.00031506,120]
[392781386,1761947925816,-500.0,0.00031506,120]
[392781387,1761947925853,-846.69,0.00031506,120]
[392781388,1761947925891,-500.0,0.00031506,120]
[392781389,1761947925930,-500.0,0.00031506,120]
[392781390,1761947925968,-516.36964523,0.00031506,120]
[392781391,1761947926006,-500.0,0.00031506,120]
[392781392,1761947926044,-213.1461183,0.00031506,120]
[392781393,1761947926085,-500.0,0.00031506,120]
[392781394,1761947926124,-542.38411638,0.00031506,120]
[392781395,1761947926162,-500.0,0.00031506,120]
[392781396,1761947926199,-500.0,0.00031506,120]
[392781397,1761947926234,-500.0,0.00031506,120]
[392781398,1761947926271,-500.0,0.00031506,120]
[392781399,1761947926308,-617.56,0.00031506,120]
[392781400,1761947926346,-242.71434378,0.00031506,120]
[392781401,1761947926382,-500.0,0.00031506,120]
[392781402,1761947926418,-896.06,0.00031506,120]
[392781403,1761947926457,-159.86809822,0.00031506,120]
[392781404,1761947926495,-500.0,0.00031506,120]
[392781405,1761947926533,-500.0,0.00031506,120]
[392781406,1761947926569,-500.0,0.00031506,120]
[392781407,1761947926606,-500.0,0.00031506,120]
[392781408,1761947926642,-500.0,0.00031506,120]
[392781409,1761947926680,-500.0,0.00031506,120]
[392781410,1761947926717,-509.94003462,0.00031506,120]
[392781411,1761947926756,-520.76080731,0.00031506,120]
[392781412,1761947926798,-500.0,0.00031506,120]
[392781413,1761947926837,-416.59355788,0.00031506,120]
[392781414,1761947926879,-571.48043228,0.00031506,120]
[392781415,1761947926920,-500.0,0.00031506,120]
[392781416,1761947926962,-500.0,0.00031506,120]
[392781417,1761947927002,-500.0,0.00031506,120]
[392781418,1761947927041,-509.58935421,0.00031506,120]
[392781419,1761947927086,-500.0,0.00031506,30]
[392781420,1761947927125,-500.0,0.00031506,120]
[392781421,1761947927163,-500.0,0.00031506,120]
[392781422,1761947927201,-500.0,0.00031506,120]
[392781423,1761947927249,-500.0,0.00031506,120]
[392781424,1761947927292,-500.0,0.00031506,120]
[392781425,1761947927335,-500.0,0.00031506,120]
[392781426,1761947927379,-500.0,0.00031506,120]
[392781427,1761947927419,-500.0,0.00031506,120]
[392781428,1761947927458,-197.27777353,0.00031506,120]
[392781429,1761947927496,-500.0,0.00031506,120]
[392781430,1761947927536,-500.0,0.00031506,120]
[392781431,1761947927576,-500.0,0.00031506,120]
[392781432,1761947927614,-500.0,0.00031506,120]
[392781433,1761947927654,-2082.33,0.00031506,120]
[392781434,1761947927694,-500.0,0.00031506,120]
[392781435,1761947927734,-500.0,0.00031506,120]
[392781436,1761947927778,-500.0,0.00031506,120]
[392781437,1761947927817,-500.0,0.00031506,120]
[392781438,1761947927858,-500.0,0.00031506,120]
[392781439,1761947927900,-500.0,0.00031506,120]
[392781440,1761947927940,-500.0,0.00031506,120]
[392781441,1761947927981,-500.0,0.00031506,120]
[392781442,1761947928019,-500.0,0.00031506,120]
[392781443,1761947928056,-589.57220921,0.00031506,120]
[392781444,1761947928096,-500.0,0.00031506,120]
[392781445,1761947928135,-1890.14,0.00031506,120]
[392781446,1761947928177,-500.0,0.00031506,120]
[392781447,1761947928215,-399.43344249,0.00031506,120]
[392781448,1761947928254,-500.0,0.00031506,120]
[392781449,1761947928293,-500.0,0.00031506,120]
[392781450,1761947928332,-1540.94,0.00031506,120]
[392781451,1761947928370,-500.0,0.00031506,120]
[392781452,1761947928409,-500.0,0.00031506,120]
[392781453,1761947928450,-176.34151915,0.00031506,120]
[392781454,1761947928492,-935.35,0.00031506,120]
[392781455,1761947928533,-500.0,0.00031506,120]
[392781456,1761947928586,-500.0,0.00031506,120]
[392781457,1761947928852,-1453.12,0.00031506,120]
[392781458,1761947928899,-500.0,0.00031506,120]
[392781459,1761947928942,-500.0,0.00031506,120]
[392781460,1761947928984,-500.0,0.00031506,120]
[392781461,1761947929025,-458.000606,0.00031506,120]
[392781462,1761947929068,-500.0,0.00031506,120]
[392781463,1761947929113,-577.31,0.00031506,120]
[392781464,1761947929159,-500.0,0.00031506,120]
[392781465,1761947929200,-788.28,0.00031506,120]
[392781466,1761947929240,-500.0,0.00031506,120]
[392781467,1761947929283,-561.22,0.00031506,120]
[392781468,1761947929326,-500.0,0.00031506,120]
[392781469,1761947929368,-500.0,0.00031506,120]
[392781470,1761947929409,-500.0,0.00031506,120]
[392781471,1761947929452,-500.0,0.00031506,120]
[392781472,1761947929494,-500.0,0.00031506,120]
[392781473,1761947929536,-500.0,0.00031506,120]
[392781474,1761947929576,-546.54,0.00031506,120]
[392781475,1761947929617,-500.0,0.00031506,120]
[392781476,1761947929656,-500.0,0.00031506,90]
[392781477,1761947929696,-500.0,0.00031506,120]
[392781478,1761947929736,-788.21,0.00031506,120]
[392781479,1761947929775,-500.0,0.00031506,120]
[392781480,1761947929814,-500.0,0.00031506,120]
[392781481,1761947929853,-819.2,0.00031506,120]
[392781482,1761947929894,-500.0,0.00031506,120]
[392781483,1761947929934,-500.0,0.00031506,120]
[392781484,1761947929974,-500.0,0.00031506,120]
[392781485,1761947930015,-841.34,0.00031506,60]
[392781486,1761947930054,-853.47,0.00031506,120]
[392781487,1761947930093,-500.0,0.00031506,120]
[392781488,1761947930134,-500.0,0.00031506,120]
[392781489,1761947930176,-500.0,0.00031506,120]
[392781490,1761947930218,-559.19135294,0.00031506,120]
[392781491,1761947930261,-500.0,0.00031506,120]
[392781492,1761947930304,-500.0,0.00031506,120]
[392781493,1761947930346,-500.0,0.00031506,120]
[392781494,1761947930388,-500.0,0.00031506,120]
[392781495,1761947930430,-500.0,0.00031506,120]
[392781496,1761947930473,-500.0,0.00031506,60]
[392781497,1761947930514,-500.0,0.00031506,120]
[392781498,1761947930555,-568.66,0.00031506,120]
[392781499,1761947930597,-500.0,0.00031506,120]
[392781500,1761947930637,-500.0,0.00031506,120]
[392781501,1761947930679,-776.66,0.00031506,120]
[392781502,1761947930723,-500.0,0.00031506,120]
[392781503,1761947930766,-500.0,0.00031506,120]
[392781504,1761947930809,-500.0,0.00031506,120]
[392781505,1761947930849,-500.0,0.00031506,120]
[392781506,1761947930892,-915.8,0.00031506,120]
[392781507,1761947930935,-894.61,0.00031506,120]
[392781508,1761947930978,-500.0,0.00031506,120]
[392781509,1761947931020,-500.0,0.00031506,120]
[392781510,1761947931062,-500.0,0.00031506,120]
[392781511,1761947931103,-695.91,0.00031506,120]
[392781512,1761947931145,-500.0,0.00031506,120]
[392781513,1761947931189,-500.0,0.00031506,120]
[392781514,1761947931232,-676.61,0.00031506,120]
[392781515,1761947931272,-500.0,0.00031506,120]
[392781516,1761947931316,-500.0,0.00031506,120]
[392781517,1761947931356,-328.70307104,0.00031506,120]
[392781518,1761947931395,-616.93381274,0.00031506,120]
[392781519,1761947931434,-500.0,0.00031506,120]
[392781520,1761947931474,-205.35125117,0.00031506,120]
[392781521,1761947931517,-500.0,0.00031506,120]
[392781522,1761947931557,-343.677147,0.00031506,120]
[392781523,1761947931596,-500.0,0.00031506,120]
[392781524,1761947931634,-650.56,0.00031506,120]
[392781525,1761947931672,-511.29,0.00031506,120]
[392781526,1761947931711,-759.56,0.00031506,120]
[392781527,1761947931750,-512.66738743,0.00031506,120]
[392781528,1761947931789,-500.0,0.00031506,120]
[392781529,1761947931830,-1954.05,0.00031506,120]
[392781530,1761947931868,-796.03,0.00031506,120]
[392781531,1761947931908,-2282.46254828,0.00031506,30]
[392781532,1761947931948,-3327163.23149599,0.00031507,60]
[392781533,1761947941655,152.0,6.956e-05,2]
[392781534,1761947941708,152.0,8.695e-05,2]
[392781535,1761948063802,151.0,0.0001,2]
[392781536,1761948063836,151.0,0.0001,2]
[392781537,1761948063882,151.0,0.0001,2]
[392781539,1761948218697,-205.82117265,0.00013868,2]
[392781540,1761948293745,-242.97438483,0.00013868,2]
[392781541,1761948309571,150.0,0.00013488,2]
[392781542,1761948330086,157.46456533,0.00013488,2]
[392781552,1761948445524,-151.0,0.00013868,2]
[392781553,1761948445545,-24.02460763,0.00013868,2]
[392781560,1761948495395,198.59,0.000145,3]
[392781561,1761948503641,-126.97539237,0.00013868,2]
[392781562,1761948503669,-139.76613504,0.00013868,2]
[392781568,1761948563697,-45.91202038,0.00013868,2]
[392781569,1761948563719,-180.77697208,0.00013868,2]
[392781570,1761948566474,-119.22302792,0.00013868,2]
[392781571,1761948566501,-129.35645221,0.00013868,2]
[392781572,1761948566901,-120.64354779,0.00013868,2]
[392781573,1761948566924,-127.93593234,0.00013868,2]
[392781603,1761948632273,-1010.12851018,0.00013868,2]
[392781605,1761948632284,-255.82679172,0.00014002,2]
[392781607,1761948632295,-44.17320828,0.00014002,2]
[392781609,1761948632305,-300.0,0.00014002,2]
[392781611,1761948632314,-578.20924308,0.00014203,2]
[392781613,1761948632324,-166.66,0.00014203,2]
[392781615,1761948632333,-168.0,0.00014289,2]
[392781617,1761948632343,-166.79,0.00014407,2]
[392781619,1761948632352,-166.66,0.00014503,2]
[392781621,1761948632362,-111.18606654,0.00014576,2]
[392781623,1761948632373,-56.81393346,0.00014576,2]
[392781625,1761948632382,-248.71531821,0.00014591,2]
[392781626,1761948632391,-62.47074833,0.00014612,2]
[392781627,1761948632402,-159.14131523,0.00014612,2]
[392781628,1761948632412,-892.67338722,0.00014643,2]
[392781629,1761948632422,-168.0,0.00014695,2]
[392781630,1761948632431,-141.05163855,0.00014699,2]
[392781631,1761948632443,-158.94836145,0.00014699,2]
[392781632,1761948632452,-677.41507581,0.00014699,2]
[392781633,1761948632464,-522.58492419,0.00014699,2]
[392781634,1761948632478,-1055.0,0.000147,2]
[392781635,1761948632487,-57.47356893,0.000147,2]
[392781636,1761948632507,-942.52643107,0.000147,2]
[392781637,1761948632518,-1000.0,0.000147,2]
[392781638,1761948632528,-1634.0,0.000147,2]
[392781639,1761948632538,-168.0,0.00014767,2]
[392781640,1761948632549,-168.0,0.00014781,2]
[392781641,1761948632558,-234.1322,0.000148,2]
[392781642,1761948632568,-3848.471,0.000148,2]
[392781643,1761948632577,-166.66,0.00014802,2]
[392781644,1761948632587,-500.0,0.00014822,2]
[392781645,1761948632597,-150.0,0.00014826,2]
[392781646,1761948632606,-151.0,0.00014827,2]
[392781647,1761948632616,-646.65982734,0.00014827,2]
[392781648,1761948632625,-160.0,0.00014827,2]
[392781649,1761948632638,-250.0,0.00014827,2]
[392781650,1761948632648,-151.0,0.00014827,2]
[392781651,1761948632657,-500.0,0.00014827,2]
[392781652,1761948632667,-151.0,0.00014827,2]
[392781653,1761948632676,-250.0,0.00014827,2]
[392781654,1761948632686,-151.0,0.00014827,2]
[392781655,1761948632696,-151.0,0.00014827,2]
[392781656,1761948632706,-500.0,0.00014827,2]
[392781657,1761948632715,-250.0,0.00014827,2]
[392781658,1761948632725,-151.0,0.00014827,2]
[392781659,1761948632734,-151.0,0.00014827,2]
[392781660,1761948632744,-151.0,0.00014827,2]
[392781661,1761948632754,-500.0,0.00014827,2]
[392781662,1761948632764,-151.0,0.00014827,2]
[392781663,1761948632773,-151.0,0.00014827,2]
[392781664,1761948632783,-151.0,0.00014827,2]
[392781665,1761948632793,-151.0,0.00014827,2]
[392781666,1761948632803,-500.0,0.00014827,2]
[392781667,1761948632813,-500.0,0.00014827,2]
[392781668,1761948632822,-151.0,0.00014827,2]
[392781669,1761948632832,-151.0,0.00014827,2]
[392781670,1761948632842,-151.0,0.00014827,2]
[392781671,1761948632852,-500.0,0.00014827,2]
[392781672,1761948632862,-500.0,0.00014827,2]
[392781673,1761948632871,-151.0,0.00014827,2]
[392781674,1761948632881,-151.0,0.00014827,2]
[392781675,1761948632891,-500.0,0.00014827,2]
[392781676,1761948632901,-637.23474015,0.00014827,2]
[392781677,1761948632911,-151.0,0.00014827,2]
[392781678,1761948632921,-151.0,0.00014827,2]
[392781679,1761948632931,-500.0,0.00014827,2]
[392781680,1761948632940,-151.0,0.00014827,2]
[392781681,1761948632950,-151.0,0.00014827,2]
[392781682,1761948632960,-500.0,0.00014827,2]
[392781683,1761948632970,-151.0,0.00014827,2]
[392781684,1761948632980,-151.0,0.00014827,2]
[392781685,1761948632990,-500.0,0.00014827,2]
[392781686,1761948632999,-151.0,0.00014827,2]
[392781687,1761948633010,-151.0,0.00014827,2]
[392781688,1761948633019,-500.0,0.00014827,2]
[392781689,1761948633028,-187.78006525,0.00014827,2]
[392781690,1761948633038,-151.0,0.00014827,2]
[392781691,1761948633048,-500.0,0.00014827,2]
[392781692,1761948633058,-151.0,0.00014827,2]
[392781693,1761948633067,-151.0,0.00014827,2]
[392781694,1761948633077,-151.0,0.00014827,2]
[392781695,1761948633087,-151.0,0.00014827,2]
[392781696,1761948633096,-151.0,0.00014827,2]
[392781697,1761948633106,-151.0,0.00014827,2]
[392781698,1761948633115,-187.78006525,0.00014827,2]
[392781699,1761948633127,-151.0,0.00014827,2]
[392781700,1761948633136,-500.0,0.00014827,2]
[392781701,1761948633146,-500.0,0.00014827,2]
[392781702,1761948633155,-500.0,0.00014827,2]
[392781703,1761948633165,-151.0,0.00014827,2]
[392781704,1761948633175,-500.0,0.00014827,2]
[392781705,1761948633185,-500.0,0.00014827,2]
[392781706,1761948633195,-151.0,0.00014827,2]
[392781707,1761948633204,-151.0,0.00014827,2]
[392781708,1761948633215,-500.0,0.00014827,2]
[392781709,1761948633225,-500.0,0.00014827,2]
[392781710,1761948633234,-151.0,0.00014827,2]
[392781711,1761948633243,-500.0,0.00014827,2]
[392781712,1761948633254,-500.0,0.00014827,2]
[392781713,1761948633265,-151.0,0.00014827,2]
[392781714,1761948633275,-500.0,0.00014827,2]
[392781715,1761948633286,-500.0,0.00014827,2]
[392781716,1761948633296,-514.84070869,0.00014827,2]
[392781717,1761948633306,-151.0,0.00014827,2]
[392781718,1761948633319,-500.0,0.00014827,2]
[392781719,1761948633329,-500.0,0.00014827,2]
[392781720,1761948633340,-151.0,0.00014827,2]
[392781721,1761948633350,-500.0,0.00014827,2]
[392781722,1761948633361,-151.0,0.00014827,2]
[392781723,1761948633372,-500.0,0.00014827,2]
[392781724,1761948633382,-500.0,0.00014827,2]
[392781725,1761948633392,-500.0,0.00014827,2]
[392781726,1761948633402,-500.0,0.00014827,2]
[392781727,1761948633413,-151.0,0.00014827,2]
[392781728,1761948633423,-500.0,0.00014827,2]
[392781729,1761948633433,-500.0,0.00014827,2]
[392781730,1761948633444,-500.0,0.00014827,2]
[392781731,1761948633454,-250.0,0.00014827,2]
[392781732,1761948633464,-250.0,0.00014827,2]
[392781733,1761948633477,-250.0,0.00014827,2]
[392781734,1761948633486,-250.0,0.00014827,2]
[392781735,1761948633496,-250.0,0.00014827,2]
[392781736,1761948633505,-322.6107,0.00014827,2]
[392781737,1761948633515,-304.77291311,0.00014827,2]
[392781738,1761948633524,-500.0,0.00014827,2]
[392781739,1761948633534,-500.0,0.00014827,2]
[392781740,1761948633543,-500.0,0.00014827,2]
[392781741,1761948633553,-187.78006525,0.00014827,2]
[392781742,1761948633562,-250.0,0.00014827,2]
[392781743,1761948633572,-250.0,0.00014827,2]
[392781744,1761948633582,-250.0,0.00014827,2]
[392781745,1761948633592,-1425.72,0.00014827,2]
[392781746,1761948633602,-10159.9206,0.00014836,2]
[392781747,1761948633612,-398.0278,0.00014836,2]
[392781748,1761948633621,-500.0,0.00014873,2]
[392781749,1761948633631,-500.0,0.00014873,2]
[392781750,1761948633641,-500.0,0.00014873,2]
[392781751,1761948633651,-199.75375206,0.00014873,2]
[392781752,1761948633661,-503.10126105,0.00014873,2]
[392781753,1761948633671,-500.0,0.00014873,2]
[392781754,1761948633681,-500.0,0.00014873,2]
[392781755,1761948633690,-433.21534504,0.00014873,2]
[392781756,1761948633700,-500.0,0.00014873,2]
[392781757,1761948633711,-311.4094349,0.00014873,2]
[392781758,1761948633725,-508.32529215,0.00014873,2]
[392781759,1761948633734,-200.0,0.0001488,2]
[392781760,1761948633744,-4448.62288212,0.00014899,2]
[392781761,1761948633754,-3491.4028492,0.00014899,2]
[392781762,1761948633763,-3491.4028492,0.00014899,2]
[392781763,1761948633772,-3491.4028492,0.00014899,2]
[392781764,1761948633782,-3491.4028492,0.00014899,2]
[392781765,1761948633792,-3491.4028492,0.000149,2]
[392781766,1761948633802,-3491.4028492,0.000149,2]
[392781767,1761948633812,-3491.4028492,0.000149,2]
[392781768,1761948633824,-3491.4028492,0.000149,2]
[392781769,1761948633834,-1000.0,0.000149,2]
[392781770,1761948633843,-3491.4028492,0.000149,2]
[392781771,1761948633853,-24076.00114583,0.000149,2]
[392781772,1761948633863,-3228.8385475,0.000149,2]
[392781773,1761948633872,-531.90863334,0.000149,2]
[392781774,1761948633883,-165.29735105,0.000149,2]
[392781775,1761948633893,-2500.0,0.000149,2]
[392781776,1761948633901,-187.58493434,0.000149,2]
[392781777,1761948633911,-168.0,0.00014968,2]
[392781778,1761948633922,-500.0,0.00014973,2]
[392781779,1761948633932,-500.0,0.00014973,2]
[392781780,1761948633943,-500.0,0.00014973,2]
[392781781,1761948633953,-248.65000836,0.00014973,2]
[392781782,1761948633964,-500.0,0.00014973,2]
[392781783,1761948633973,-519.25430846,0.00014973,2]
[392781784,1761948633983,-160.43633678,0.00014973,2]
[392781785,1761948633992,-500.0,0.00014973,2]
[392781786,1761948634001,-500.0,0.00014973,2]
[392781787,1761948634010,-500.0,0.00014973,2]
[392781788,1761948634019,-186.10371491,0.00014973,2]
[392781789,1761948634028,-500.0,0.00014973,2]
[392781790,1761948634038,-500.0,0.00014973,2]
[392781791,1761948634047,-1116.5163445,0.0001499,2]
[392781792,1761948634057,-1116.5163445,0.0001499,2]
[392781793,1761948634066,-1116.5163445,0.0001499,2]
[392781794,1761948634075,-151.0,0.00014993,2]
[392781795,1761948634085,-151.0,0.00014994,2]
[392781796,1761948634094,-151.0,0.00014994,2]
[392781797,1761948634104,-151.0,0.00014994,2]
[392781798,1761948634112,-151.0,0.00014997,2]
[392781799,1761948634122,-258.10576263,0.00014999,2]
[392781800,1761948634131,-1014.2954,0.00014999,2]
[392781801,1761948634140,-150.0,0.00014999,2]
[392781802,1761948634150,-164.42593582,0.00014999,2]
[392781803,1761948634163,-150.0,0.00014999,2]
[392781804,1761948634172,-150.0,0.00014999,2]
[392781805,1761948634181,-500.0,0.00014999,2]
[392781806,1761948634190,-152.82594705,0.00014999,2]
[392781807,1761948634200,-500.0,0.00014999,2]
[392781808,1761948634210,-390.48758651,0.00014999,2]
[392781809,1761948634221,-500.0,0.00014999,2]
[392781810,1761948634231,-525.35060905,0.00014999,2]
[392781811,1761948634240,-500.0,0.00014999,2]
[392781812,1761948634250,-266.319,0.00014999,2]
[392781813,1761948634259,-500.0,0.00014999,2]
[392781814,1761948634269,-500.0,0.00014999,2]
[392781815,1761948634278,-500.0,0.00014999,2]
[392781816,1761948634288,-504.82,0.00014999,2]
[392781817,1761948634297,-666.0,0.00014999,2]
[392781818,1761948634306,-3415.0,0.00015,2]
[392781819,1761948634315,-104598.38451485,0.00015,2]
[392781820,1761948634330,-3858.91590597,0.00015,2]
[392781821,1761948634341,-986.17788644,0.00015,2]
[392781822,1761948634352,-22844.29715173,0.00015,2]
[392781823,1761948634372,-3128.29660856,0.00015,2]
[392781824,1761948634383,-425.84451,0.00015,2]
[392781825,1761948634395,-252.11824185,0.00015,2]
[392781826,1761948634409,-5335.75823797,0.00015,2]
[392781827,1761948634420,-1137.38751742,0.00015,2]
[392781828,1761948634432,-4115.0,0.00015,2]
[392781829,1761948634575,-500.0,0.00014996,2]
[392781830,1761948634584,-153.01216799,0.00014996,2]
[392781831,1761948634594,-129.06178328,0.00014996,2]
[392781832,1761948634606,-370.93821672,0.00014996,2]
[392781833,1761948634615,-500.0,0.00014996,2]
[392781834,1761948634625,-500.0,0.00014996,2]
[392781835,1761948634634,-500.0,0.00014996,2]
[392781836,1761948634644,-500.0,0.00014996,2]
[392781837,1761948634653,-500.0,0.00014996,2]
[392781838,1761948634663,-126271.17020567,0.00015,2]
[392781839,1761948634674,-54938.72022355,0.00015,2]
[392781840,1761948634685,-567.84044573,0.00015,2]
[392781841,1761948634722,-410.81124345,0.00014996,2]
[392781842,1761948634732,-89.73872187,0.00015,2]
[392781847,1761948637715,-438.79278143,0.00014996,2]
[392781848,1761948637823,-61.20721857,0.00014996,2]
[392781849,1761948637833,-481.25887255,0.00014996,2]
[392781850,1761948637844,-18.74112745,0.00014996,2]
[392781851,1761948637855,-500.0,0.00014996,2]
[392781852,1761948637865,-500.0,0.00014996,2]
[392781853,1761948637874,-500.0,0.00014996,2]
[392781854,1761948637884,-500.0,0.00014996,2]
[392781855,1761948637894,-500.0,0.00014996,2]
[392781856,1761948637904,-292.91366508,0.00014996,2]
[392781857,1761948637915,-207.08633492,0.00014996,2]
[392781858,1761948637925,-500.0,0.00014996,2]
[392781859,1761948637935,-500.0,0.00014996,2]
[392781861,1761948637945,-500.0,0.00014996,2]
[392781863,1761948637955,-500.0,0.00014996,2]
[392781864,1761948637965,-500.0,0.00014996,2]
[392781865,1761948637976,-500.0,0.00014996,2]
[392781866,1761948637986,-500.0,0.00014996,2]
[392781867,1761948637997,-500.0,0.00014996,2]